bitfinex-derivatives/quotes_ETHF0:USTF0_20240822
["timestamp","ask_amount","ask_price","bid_price","bid_amount"]
[1724286774001,0.00569465,2633.9,2633.8,4.55494]
[1724286776001,0.00569465,2633.9,2633.8,0.3786]
[1724286778799,0.37956,2633.7,2633.6,0.3517]
[1724286778995,0.37955,2633.8,2633.6,0.3517]
[1724286779195,0.37956,2633.7,2633.6,0.3517]
[1724286779395,0.356,2633.7,2633.6,0.3517]
[1724286780604,3.2078,2633.8,2633.6,0.3517]
[1724286781196,0.00569465,2633.9,2633.8,0.37954]
[1724286781810,0.00569465,2633.9,2633.7,0.73845]
[1724286781992,0.00569465,2633.9,2633.7,0.3589]
[1724286782800,3.2078,2633.8,2633.6,0.3517]
[1724286783002,0.75466,2633.7,2633.5,0.00416536]
[1724286783208,0.3766,2633.6,2633.5,0.00416536]
[1724286784303,0.7517,2633.6,2633.5,0.00416536]
[1724286785501,0.3766,2633.6,2633.5,0.00416536]
[1724286785703,0.3766,2633.6,2633.5,0.38375536]
[1724286785904,0.3487,2633.7,2633.5,0.38375536]
[1724286786304,3.2078,2633.6,2633.5,0.00416536]
[1724286786616,0.3487,2633.7,2633.6,0.3545]
[1724286787511,0.3487,2633.7,2633.5,0.00416536]
[1724286788611,0.7061,2633.7,2633.5,0.00416536]
[1724286788806,0.3487,2633.7,2633.5,0.00416536]
[1724286789105,3.2078,2633.8,2633.6,0.37957]
[1724286789313,3.2078,2633.8,2633.5,0.00416536]
[1724286789615,0.00569465,2633.9,2633.8,0.37954]
[1724286791701,6.48562917,2635.2,2633.8,0.37954]
[1724286791702,3.2078,2634.4,2634.3,0.37947]
[1724286792196,3.2078,2634.4,2634.3,4.17547]
[1724286792802,3.2078,2634.4,2634.3,3.796]
[1724286793108,4.2078,2634.4,2634.1,0.3836]
[1724286793311,1.0,2634.2,2634.1,0.3836]
[1724286793616,1.0,2634.2,2633.8,0.74124]
[1724286793911,1.0,2633.9,2633.8,1.12484]
[1724286794598,1.0,2633.9,2633.8,0.7453]
[1724286794904,1.0,2633.9,2633.8,0.3836]
[1724286796006,1.0,2633.9,2633.5,0.36586536]
[1724286796208,3.97211,2634.1,2633.7,0.3713]
[1724286796411,3.5926,2634.1,2633.7,0.3713]
[1724286796610,1.0,2633.9,2633.7,0.75085]
[1724286796913,1.0,2633.8,2633.6,0.37956]
[1724286797108,3.9721,2634.1,2633.7,0.3713]
[1724286797411,3.5926,2634.1,2633.7,0.75086]
[1724286797607,1.0,2633.8,2633.7,0.75086]
[1724286797806,1.0,2633.8,2633.7,0.3713]
[1724286798010,1.0,2633.7,2633.5,0.00416536]
[1724286798221,1.78070908,2633.6,2633.5,0.00416536]
[1724286798511,1.7557,2633.6,2633.5,0.00416536]
[1724286799318,1.3803,2633.6,2633.5,0.00416536]
[1724286799707,1.3803,2633.6,2633.5,0.38375536]
[1724286799708,1.0,2633.6,2633.5,0.38375536]
[1724286799914,3.2078,2633.8,2633.6,0.37956]
[1724286800113,1.0,2633.7,2633.6,0.37956]
[1724286800319,1.0,2633.7,2633.5,0.00416536]
[1724286800816,1.0,2633.7,2633.5,0.38374536]
[1724286801006,3.2078,2633.8,2633.5,0.00416536]
[1724286801007,1.0,2633.6,2633.5,0.00416536]
[1724286801206,1.0,2633.7,2633.5,0.00416536]
[1724286801408,1.0,2633.6,2633.5,0.00416536]
[1724286801609,3.5803,2633.8,2633.5,3.80096536]
[1724286801809,1.0,2633.7,2633.5,0.00416536]
[1724286802021,1.0,2633.7,2633.5,0.38374536]
[1724286802218,1.0,2633.7,2633.5,0.00416536]
[1724286802431,1.0,2633.6,2633.5,0.38375536]
[1724286803432,3.2078,2633.8,2633.7,0.37956]
[1724286803827,3.2078,2633.8,2633.7,4.17636]
[1724286804135,1.09866,2634.4,2634.0,0.37952]
[1724286804136,3.2078,2634.1,2634.0,0.37952]
[1724286804435,4.2078,2634.3,2634.2,0.37948]
[1724286805431,4.2078,2634.3,2634.1,0.3795]
[1724286805738,3.2078,2634.3,2634.2,0.76469]
[1724286806032,4.2078,2634.3,2634.2,0.76469]
[1724286807023,4.2078,2634.3,2634.2,0.3852]
[1724286807736,3.2078,2634.3,2634.2,4.56069]
[1724286810133,3.2078,2634.3,2634.2,4.1812]
[1724286810341,4.2078,2634.3,2634.2,0.3852]
[1724286810726,3.2078,2634.3,2634.2,4.1812]
[1724286810922,3.2078,2634.3,2634.2,4.56069]
[1724286812632,0.00569465,2634.6,2634.4,0.37946]
[1724286813031,1.0,2634.5,2634.3,0.37947]
[1724286813329,1.0,2634.4,2634.3,0.37947]
[1724286813940,1.0,2634.4,2634.2,0.76468]
[1724286814439,1.0,2634.4,2634.3,0.37947]
[1724286817238,1.0,2634.4,2634.2,0.76468]
[1724286817833,1.0,2634.4,2634.2,0.3852]
[1724286818037,1.0,2634.4,2634.1,0.3795]
[1724286818038,1.3557,2634.3,2634.1,0.37949]
[1724286818237,1.0,2634.2,2634.1,0.37949]
[1724286818743,1.0,2634.2,2634.1,0.72769]
[1724286819537,1.0,2634.2,2634.1,1.11009]
[1724286820438,1.0,2634.2,2633.7,7.3938]
[1724286820739,1.0,2634.1,2634.0,0.37952]
[1724286825844,3.2078,2634.5,2634.0,0.37952]
[1724286825845,0.3626,2634.5,2634.4,0.37946]
[1724286826039,1.3626,2634.5,2634.4,0.37946]
[1724286827755,0.00569465,2634.6,2634.5,0.37944]
[1724286828046,0.00569465,2634.6,2634.5,4.17544]
[1724286828245,3.2078,2635.3,2635.1,0.37934]
[1724286828452,0.3626,2635.3,2635.2,0.37934]
[1724286828651,0.00468891,2635.4,2635.3,0.37933]
[1724286828841,3.2078,2635.7,2635.3,4.1751]
[1724286829039,0.7108,2636.0,2635.5,3.2078]
[1724286829247,1.0,2635.8,2635.7,0.37927]
[1724286829946,1.00274063,2635.8,2635.7,0.38396888]
[1724286830753,1.00274063,2635.8,2635.7,0.00469888]
[1724286833355,1.00274063,2635.8,2635.7,0.38396888]
[1724286834750,1.00274063,2635.8,2635.7,0.00469888]
[1724286836152,1.00274063,2635.8,2635.7,0.38396888]
[1724286837567,1.00274063,2635.8,2635.7,0.74086888]
[1724286839048,0.00274063,2635.8,2635.7,0.74086888]
[1724286839250,0.00274063,2635.8,2635.7,4.53446888]
[1724286840151,0.00274063,2635.8,2635.7,12.81446888]
[1724286840351,0.00569465,2636.0,2635.9,0.37924]
[1724286840753,0.00569465,2636.0,2635.9,4.17284]
[1724286841352,0.0092281,2636.0,2635.9,9.17284]
[1724286841948,0.0092281,2636.0,2635.9,12.38064]
[1724286842352,0.0092281,2636.0,2635.9,13.32875]
[1724286843364,3.2078,2637.0,2636.1,0.94802]
[1724286843576,1.0,2636.8,2636.7,3.28]
[1724286843765,3.2078,2637.0,2636.8,0.3675]
[1724286844067,3.2078,2637.0,2636.9,0.3791]
[1724286844370,3.21148971,2637.0,2636.9,4.534]
[1724286844760,0.00368971,2637.0,2636.9,4.534]
[1724286845268,0.00568363,2637.2,2637.1,0.37907]
[1724286845562,0.00568363,2637.2,2637.1,3.65907]
[1724286845764,3.2078,2637.9,2637.6,0.37899]
[1724286845963,1.0,2637.7,2637.5,0.379]
[1724286846160,1.0,2637.7,2637.2,4.186]
[1724286846359,1.00459152,2637.7,2637.5,0.379]
[1724286846759,1.00459152,2637.7,2637.6,0.379]
[1724286847670,1.00459152,2637.7,2637.5,0.73191]
[1724286847860,1.00459152,2637.7,2637.5,0.3529]
[1724286848569,1.00459152,2637.7,2637.5,0.73191]
[1724286849171,1.00459152,2637.7,2637.5,0.3529]
[1724286849469,1.00459152,2637.7,2637.2,4.18872794]
[1724286849470,1.0,2637.6,2637.2,4.18872794]
[1724286849662,1.0,2637.3,2637.2,0.00272794]
[1724286850171,4.2078,2637.3,2637.2,0.00272794]
[1724286850672,4.9376,2637.3,2637.2,0.00272794]
[1724286852067,5.31664,2637.3,2637.2,0.00272794]
[1724286852673,4.9376,2637.3,2637.2,0.00272794]
[1724286853268,5.31664,2637.3,2637.2,0.00272794]
[1724286853464,4.9376,2637.3,2637.2,0.00272794]
[1724286855481,9.9376,2637.3,2636.9,0.00569465]
[1724286855780,4.2078,2637.0,2636.9,0.00569465]
[1724286856473,4.2078,2637.0,2636.9,0.00904364]
[1724286858181,1.0,2637.0,2636.9,0.38814364]
[1724286858379,3.2078,2637.3,2637.0,0.37907]
[1724286858590,3.2078,2637.3,2637.1,0.37907]
[1724286858876,3.2078,2637.3,2637.0,0.37908]
[1724286859069,3.2078,2637.3,2636.9,0.00904364]
[1724286859070,1.0,2637.0,2636.9,0.38814364]
[1724286859275,1.0,2637.0,2636.9,0.00904364]
[1724286860780,4.58688,2637.0,2636.9,0.00904364]
[1724286861377,9.58688,2637.0,2636.9,0.00904364]
[1724286861581,4.58688,2637.0,2636.9,0.00904364]
[1724286862377,9.58688,2637.0,2636.9,0.00904364]
[1724286862579,9.58915673,2637.0,2636.1,3.63]
[1724286862785,3.2078,2636.3,2636.2,0.37919]
[1724286862979,1.0,2636.2,2636.1,3.28]
[1724286863179,3.5869,2636.9,2636.1,3.28]
[1724286863180,1.0,2636.4,2636.1,3.28]
[1724286863384,1.0,2636.4,2636.3,0.37918]
[1724286863585,1.0,2636.4,2636.3,0.38346571]
[1724286868889,1.0,2636.4,2636.3,0.00428571]
[1724286869577,1.3562,2636.4,2636.3,0.00428571]
[1724286869980,1.3562,2636.4,2636.3,0.38346571]
[1724286870180,1.0,2636.4,2636.3,0.38346571]
[1724286870378,1.0,2636.4,2636.3,1.33143571]
[1724286871783,1.0,2636.4,2636.3,0.38346571]
[1724286872787,4.089,2636.9,2636.3,9.74504571]
[1724286873094,1.0,2636.8,2636.7,0.37913]
[1724286876317,0.00569465,2637.2,2637.1,0.37907]
[1724286876692,1.00569465,2637.2,2637.1,0.37907]
[1724286877093,1.00569465,2637.2,2637.1,3.65907]
[1724286877495,0.00569465,2637.2,2637.1,12.45107]
[1724286877803,3.2078,2637.5,2637.4,0.37903]
[1724286878004,3.2078,2637.5,2637.4,3.65903]
[1724286878212,3.2078,2637.5,2637.4,7.45023]
[1724286878906,4.2078,2637.5,2637.4,0.37903]
[1724286883002,4.2078,2637.5,2637.0,1.0753]
[1724286883210,1.0,2637.1,2637.0,0.7158]
[1724286883511,1.0,2637.1,2637.0,1.09488]
[1724286884406,1.0,2637.1,2636.9,4.56509]
[1724286884615,1.0,2637.0,2636.9,4.56509]
[1724286885811,1.0,2637.0,2636.9,4.186]
[1724286886111,1.0,2637.0,2636.9,4.5651]
[1724286886808,1.37908,2637.0,2636.9,4.186]
[1724286887106,1.0,2637.0,2636.9,4.186]
[1724286887507,1.3703,2637.0,2636.9,4.186]
[1724286888399,1.3703,2637.0,2636.8,0.37911]
[1724286888603,1.0,2636.9,2636.7,3.65911]
[1724286888805,1.0,2636.8,2636.7,3.65911]
[1724286893107,1.37911,2636.8,2636.4,3.28]
[1724286893424,1.0,2636.5,2636.4,3.65916]
[1724286896012,3.2078,2636.9,2636.8,0.37911]
[1724286896207,4.2078,2636.9,2636.8,0.37911]
[1724286896721,3.2078,2637.6,2637.2,0.37905]
[1724286897017,1.0,2637.3,2637.2,0.37905]
[1724286899307,1.0,2637.3,2637.1,0.37906]
[1724286899507,3.2078,2637.3,2637.1,0.37906]
[1724286899714,1.0,2637.2,2637.1,0.37906]
[1724286900424,1.0,2637.2,2636.8,1.1181]
[1724286900715,1.0,2637.1,2637.0,0.37908]
[1724286901317,1.0,2637.1,2637.0,3.65908]
[1724286901517,3.2078,2637.6,2637.0,12.072]
[1724286901816,3.2078,2637.6,2637.5,0.37901]
[1724286902123,3.2078,2637.6,2637.4,0.37902]
[1724286902517,1.0,2637.5,2637.4,0.37902]
[1724286902821,0.37903,2637.4,2637.0,0.37907]
[1724286903119,0.37903,2637.4,2636.8,7.6059]
[1724286903120,1.0,2637.1,2636.8,7.6059]
[1724286903312,1.0,2637.1,2637.0,0.37908]
[1724286904312,1.0,2637.1,2636.9,0.37909]
[1724286904512,0.37906,2637.2,2636.9,0.37909]
[1724286904817,1.0,2637.0,2636.9,0.37909]
[1724286907009,1.0,2637.0,2636.8,3.65911]
[1724286907216,2.12171,2636.9,2636.5,3.28]
[1724286907420,0.7426,2636.9,2636.5,3.28]
[1724286907624,1.0,2636.7,2636.6,0.37914]
[1724286907818,8.55485448,2637.3,2637.0,0.37908]
[1724286908024,1.0,2637.1,2636.9,0.37909]
[1724286908216,1.0,2637.0,2636.9,0.37909]
[1724286908421,1.0,2637.0,2636.8,0.3791]
[1724286908623,1.13866,2637.2,2636.9,0.3791]
[1724286908818,1.0,2637.0,2636.8,0.3791]
[1724286909123,1.13866,2637.2,2636.8,0.3791]
[1724286909427,1.0,2636.9,2636.8,0.3791]
[1724286909622,1.0,2636.9,2636.5,3.28]
[1724286909923,1.0,2636.6,2636.5,3.65915]
[1724286913228,3.2078,2637.1,2637.0,0.37908]
[1724286913433,3.2078,2637.1,2636.9,0.37909]
[1724286913923,1.0,2637.0,2636.9,0.37909]
[1724286914524,1.0,2637.0,2636.8,0.3791]
[1724286914726,3.58687,2637.1,2636.8,0.3791]
[1724286914925,1.0,2636.9,2636.8,0.3791]
[1724286917230,0.37912,2636.8,2636.5,0.37915]
[1724286917431,1.0,2636.6,2636.5,0.37915]
[1724286917832,1.0,2636.6,2636.5,3.65915]
[1724286918530,1.0,2636.6,2636.5,3.28]
[1724286919235,1.0,2636.6,2636.5,3.65915]
[1724286920638,3.2078,2637.0,2636.9,0.3791]
[1724286921032,4.2078,2637.0,2636.9,0.3791]
[1724286924031,4.2078,2637.0,2636.7,0.37912]
[1724286924230,1.0,2636.8,2636.7,0.37912]
[1724286931446,0.37913,2636.7,2636.5,3.65915]
[1724286931648,1.0,2636.6,2636.5,3.65915]
[1724286934634,1.0,2636.6,2636.5,0.37915]
[1724286938534,3.2078,2636.9,2636.8,0.37911]
[1724286938743,4.2078,2636.9,2636.8,1.74511]
[1724286938935,3.2078,2636.9,2636.8,5.53791]
[1724286939444,3.2078,2636.9,2636.8,6.4857]
[1724286939642,4.089,2637.4,2636.8,6.10659]
[1724286939835,1.0,2637.1,2636.9,0.3601]
[1724286940239,1.0,2637.1,2637.0,0.37908]
[1724286940445,3.2078,2637.6,2637.5,0.37901]
[1724286940650,4.2078,2637.6,2637.5,0.37901]
[1724286940850,1.0,2637.6,2637.5,0.37901]
[1724286942049,1.0,2637.6,2637.4,0.7204]
[1724286942243,0.37897,2637.8,2637.4,0.37902]
[1724286942244,1.0,2637.5,2637.4,0.37902]
[1724286942551,1.3686,2637.5,2637.4,0.37902]
[1724286942754,1.0,2637.5,2637.3,3.277]
[1724286942949,0.3793,2637.6,2637.3,3.277]
[1724286942950,1.0,2637.4,2637.3,3.65603]
[1724286947745,1.0,2637.4,2637.1,4.022]
[1724286947948,1.0,2637.2,2637.1,4.40107]
[1724286948356,3.5871,2637.6,2637.1,4.40107]
[1724286948547,1.0,2637.2,2637.1,0.37907]
[1724286948751,1.0,2637.2,2637.0,4.56508]
[1724286948953,0.37904,2637.3,2637.0,4.56508]
[1724286948954,1.745,2637.1,2637.0,4.56508]
[1724286950769,1.745,2637.1,2637.0,0.37908]
[1724286953359,1.745,2637.1,2636.9,0.37909]
[1724286953574,1.0,2637.0,2636.9,0.37909]
[1724286955254,3.2078,2637.3,2637.2,0.37905]
[1724286955458,3.2078,2637.3,2637.2,3.65605]
[1724286955663,4.2078,2637.3,2637.2,3.65605]
[1724286957161,1.0,2637.3,2637.2,3.65605]
[1724286957475,0.74769152,2637.7,2637.5,0.379]
[1724286957761,0.74769152,2637.7,2637.6,0.379]
[1724286958166,1.74769152,2637.7,2637.6,0.379]
[1724286958358,1.74769152,2637.7,2637.2,3.277]
[1724286958359,1.74769152,2637.7,2637.5,0.379]
[1724286958559,0.74769152,2637.7,2637.5,0.379]
[1724286958754,1.0,2637.6,2637.5,0.379]
[1724286958960,1.0,2637.6,2637.4,0.37902]
[1724286959164,1.0,2637.5,2637.4,0.37902]
[1724286965667,1.0,2637.5,2637.2,3.277]
[1724286965870,1.0,2637.5,2637.4,0.37903]
[1724286974477,1.0,2637.5,2637.4,1.74403]
[1724286978075,1.0,2637.5,2637.4,2.6916]
[1724286978479,0.00459152,2637.7,2637.6,0.379]
[1724286978684,1.00459152,2637.7,2637.6,1.744]
[1724286978984,1.00459152,2637.7,2637.6,2.1251]
[1724286980883,1.00459152,2637.7,2637.6,1.744]
[1724286981680,1.38357152,2637.7,2637.2,0.3671]
[1724286981884,0.3722,2637.6,2637.5,0.37901]
[1724286982387,1.3722,2637.6,2637.5,0.37901]
[1724286983682,1.3722,2637.6,2637.5,1.74401]
[1724286985981,1.0,2637.6,2637.5,1.74401]
[1724286986586,0.00459152,2637.7,2637.6,0.379]
[1724286986886,0.00459152,2637.7,2637.6,4.3362]
[1724286986887,1.00459152,2637.7,2637.6,4.3362]
[1724286987382,0.00459152,2637.7,2637.6,8.1274]
[1724286988489,0.00459152,2637.7,2637.6,11.4034]
[1724286989791,0.00459152,2637.7,2637.6,12.3509]
[1724286990379,3.2078,2638.2,2638.1,0.37892]
[1724286990895,4.2078,2638.2,2638.1,0.37892]
[1724286991186,1.0,2638.2,2638.1,0.75982]
[1724286991393,1.00454979,2638.2,2638.1,0.75982]
[1724286993697,1.00454979,2638.2,2638.1,0.37892]
[1724286993890,1.00454979,2638.2,2638.1,0.73052]
[1724286994090,1.00454979,2638.2,2638.1,0.3516]
[1724286994278,1.00454979,2638.2,2638.1,0.73052]
[1724286995385,4.96800448,2638.8,2638.7,0.37884]
[1724286995689,4.96800448,2639.2,2639.1,0.37878]
[1724286995880,4.96800448,2639.8,2639.4,0.37874]
[1724286996082,1.0,2639.4,2639.3,3.65475]
[1724286996279,1.0026797,2639.4,2639.3,3.65904238]
[1724286996682,4.2104797,2639.4,2639.3,0.00429238]
[1724286996882,3.276,2640.5,2639.3,0.00429238]
[1724286996883,3.7043492,2640.7,2640.6,0.37857]
[1724286997080,0.75015,2642.1,2640.8,0.37853]
[1724286997284,0.75015,2642.1,2642.0,3.276]
[1724286997285,0.3718,2642.1,2642.0,3.276]
[1724286997476,12.38502517,2642.1,2641.8,0.00568365]
[1724286997681,8.95795,2642.1,2641.8,0.00568365]
[1724286997881,8.95795,2642.1,2641.8,0.00866898]
[1724286997882,3.7848,2642.0,2641.8,0.00866898]
[1724286998482,3.7848,2641.9,2641.8,0.00866898]
[1724286998890,8.7848,2641.9,2641.8,0.00866898]
[1724287000293,9.16318,2641.9,2641.8,0.00866898]
[1724287001285,9.16318,2641.9,2641.1,3.276]
[1724287001286,9.99076,2641.9,2641.1,3.276]
[1724287001584,4.8899,2641.8,2641.1,3.276]
[1724287001896,0.7259,2641.8,2641.4,3.276]
[1724287002090,3.7856,2641.7,2641.4,3.276]
[1724287002294,3.7856,2641.7,2641.5,0.37844]
[1724287002598,3.7856,2641.6,2641.5,0.37844]
[1724287002796,3.7856,2641.7,2641.4,3.65892934]
[1724287003096,3.7856,2641.7,2641.5,0.37844]
[1724287003290,3.7856,2641.6,2641.4,3.65893934]
[1724287003595,3.7856,2641.7,2641.4,3.28048934]
[1724287003989,6.9934,2641.6,2641.4,3.28048934]
[1724287004394,3.7856,2641.5,2641.4,3.28048934]
[1724287004597,3.7856,2641.6,2641.4,3.65893934]
[1724287005392,3.7856,2641.6,2641.4,3.28048934]
[1724287005801,4.16403,2641.6,2641.4,3.28048934]
[1724287005998,3.7856,2641.6,2641.4,3.28048934]
[1724287006401,0.35584696,2641.8,2641.4,6.48828934]
[1724287006696,0.35584696,2641.8,2641.7,0.37841]
[1724287006903,5.35584696,2641.8,2641.7,0.37841]
[1724287007089,4.14144696,2641.8,2641.7,0.37841]
[1724287007496,9.14144696,2641.8,2641.4,3.28048934]
[1724287007687,0.37843,2641.6,2641.4,3.28048934]
[1724287008002,4.16402,2641.7,2641.4,3.28048934]
[1724287008198,3.7856,2641.6,2641.4,3.28048934]
[1724287008396,3.7856,2641.7,2641.4,3.28048934]
[1724287008790,3.7856,2641.6,2641.4,3.28048934]
[1724287009087,4.16401,2641.7,2641.4,3.28048934]
[1724287009496,3.80623034,2641.6,2641.4,3.28048934]
[1724287009699,3.7856,2641.6,2641.4,3.28048934]
[1724287010002,3.7856,2641.5,2641.4,3.28048934]
[1724287010198,4.16403,2641.6,2641.4,3.28048934]
[1724287010401,0.37844,2641.5,2641.4,0.00448934]
[1724287010706,3.7856,2641.5,2641.4,0.00448934]
[1724287010900,8.7856,2641.5,2641.4,0.00448934]
[1724287011208,3.7856,2641.5,2641.4,0.00448934]
[1724287011501,4.16404,2641.5,2641.4,0.00448934]
[1724287011906,3.7856,2641.5,2641.4,0.00448934]
[1724287012200,4.16404,2641.5,2641.4,0.00448934]
[1724287012404,8.7856,2641.5,2641.4,0.00448934]
[1724287012994,3.7856,2641.5,2641.4,0.00448934]
[1724287016406,4.73174,2641.4,2640.5,6.4838]
[1724287016609,3.2078,2641.2,2640.8,3.276]
[1724287016803,0.3707,2641.4,2641.2,0.37848]
[1724287017405,3.7864,2641.3,2641.2,0.38190321]
[1724287019810,0.3707,2641.4,2641.3,0.37847]
[1724287020008,4.1571,2641.4,2641.3,0.37847]
[1724287020313,4.1563,2641.4,2641.3,0.37847]
[1724287021711,3.2078,2641.7,2641.5,0.37844]
[1724287021910,3.2078,2641.7,2641.2,0.00342321]
[1724287022111,3.58622,2641.7,2641.3,0.37847]
[1724287022301,0.37842,2641.6,2641.2,0.38190321]
[1724287022502,3.58622,2641.7,2641.2,0.38190321]
[1724287022715,0.37843,2641.6,2641.2,0.00342321]
[1724287022900,4.16403,2641.6,2641.2,0.00342321]
[1724287023198,3.7856,2641.5,2641.2,0.00342321]
[1724287023719,3.2078,2641.3,2641.2,0.00342321]
[1724287024204,6.9942,2641.3,2641.2,0.00342321]
[1724287025010,6.9942,2641.3,2641.2,0.38190321]
[1724287025205,6.9942,2641.3,2641.2,0.00342321]
[1724287026912,0.37853,2640.9,2639.8,6.4838]
[1724287027101,3.93315,2640.8,2639.8,6.4838]
[1724287027299,4.80315,2640.8,2640.2,0.37861]
[1724287027506,4.4246,2640.8,2640.3,0.3786]
[1724287027717,8.59034,2640.8,2640.2,0.37862]
[1724287027912,4.80314,2640.8,2640.3,0.00286468]
[1724287028115,8.59034,2640.8,2640.3,0.00286468]
[1724287028809,7.72034,2640.8,2640.3,0.00286468]
[1724287030216,0.37855,2640.7,2640.3,0.00286468]
[1724287030608,4.16575,2640.7,2640.3,0.00286468]
[1724287031111,0.3786,2640.4,2640.3,0.00286468]
[1724287031612,9.1658,2640.4,2640.3,0.00286468]
[1724287032819,9.1758,2640.4,2640.3,0.00286468]
[1724287033613,9.1658,2640.4,2640.3,0.00286468]
[1724287034119,9.1658,2640.4,2640.0,0.00568365]
[1724287034120,0.37864,2640.1,2640.0,0.00568365]
[1724287034309,3.58644,2640.1,2640.0,0.00568365]
[1724287034506,11.9958,2640.1,2640.0,0.00568365]
[1724287034709,12.37444,2640.1,2640.0,0.00568365]
[1724287035105,12.37750174,2640.1,2640.0,0.00969441]
[1724287038017,12.50750174,2640.1,2640.0,0.00969441]
[1724287038217,0.37871,2639.7,2639.1,5.28887]
[1724287038423,0.37871,2639.7,2639.1,1.10287]
[1724287038623,3.58649,2639.8,2639.2,0.37877]
[1724287038923,3.2078,2639.8,2639.1,0.7241]
[1724287039125,0.37875,2639.4,2639.1,0.7241]
[1724287039315,0.37875,2639.3,2639.2,0.00568365]
[1724287039516,0.37874,2639.4,2639.2,0.00568365]
[1724287039710,1.12254,2639.4,2639.2,0.00568365]
[1724287039920,4.91134,2639.4,2639.2,0.00568365]
[1724287041122,4.5326,2639.4,2639.2,0.00568365]
[1724287042128,7.7404,2639.4,2639.2,0.00568365]
[1724287042520,3.2078,2639.4,2639.2,0.00568365]
[1724287043018,3.2078,2639.4,2639.2,0.38444365]
[1724287043225,3.2078,2639.4,2639.3,0.3602]
[1724287043421,3.2078,2639.4,2639.3,0.71]
[1724287043725,4.30839,2639.8,2639.3,0.71]
[1724287044121,4.30839,2639.8,2639.3,1.08874]
[1724287044122,3.2078,2639.8,2639.3,1.08874]
[1724287044530,3.2078,2639.8,2639.3,0.71]
[1724287045929,3.2078,2639.8,2639.3,1.08875]
[1724287046235,0.37875,2639.3,2639.2,0.00568365]
[1724287046615,4.16755,2639.3,2639.2,0.00568365]
[1724287049425,3.7888,2639.2,2638.5,0.3716]
[1724287049729,3.2078,2639.0,2638.5,0.3716]
[1724287049916,3.5866,2639.0,2638.4,0.37888]
[1724287050121,0.3678,2638.9,2638.4,0.37888]
[1724287050328,0.74661,2638.9,2638.3,0.37889]
[1724287050524,0.37883,2638.8,2638.4,0.00568365]
[1724287050733,0.74223,2638.8,2638.4,0.00568365]
[1724287050928,0.37887,2638.5,2638.4,0.00568365]
[1724287051428,0.37886,2638.6,2638.4,0.00568365]
[1724287051825,0.37887,2638.5,2638.4,0.00568365]
[1724287052528,0.37886,2638.6,2638.4,0.00568365]
[1724287053327,3.2078,2638.7,2638.4,0.00568365]
[1724287057840,0.38450365,2638.9,2638.4,0.00568365]
[1724287058231,0.37883,2638.8,2638.4,0.00568365]
[1724287058637,0.38450365,2638.9,2638.4,0.00568365]
[1724287059343,0.00568365,2638.9,2638.6,0.37885]
[1724287059537,0.00568365,2638.9,2638.7,0.358]
[1724287059740,0.00568365,2638.9,2638.8,0.3566]
[1724287064441,0.00568365,2638.9,2638.8,9.52503]
[1724287064642,0.00568365,2638.9,2638.8,9.87553]
[1724287065641,0.3503,2639.6,2639.2,0.37876]
[1724287066136,0.3503,2639.6,2639.3,0.37875]
[1724287066331,3.5601,2640.0,2639.1,3.276]
[1724287066537,3.5553,2640.0,2639.3,3.2078]
[1724287066839,0.00568365,2639.9,2639.6,0.3787]
[1724287067040,0.00568365,2639.9,2639.7,0.37869]
[1724287067534,0.00568365,2639.9,2639.4,3.9911]
[1724287067735,0.00568365,2639.9,2639.5,0.37872]
[1724287069136,0.00568365,2639.9,2639.7,0.37868]
[1724287069341,0.00568365,2639.9,2639.7,4.16668]
[1724287070249,0.00568365,2639.9,2639.4,1.09383]
[1724287070440,0.00568365,2639.9,2639.5,0.37872]
[1724287070843,0.00568365,2639.9,2639.6,0.37871]
[1724287071742,0.00568365,2639.9,2639.5,0.37872]
[1724287072239,0.38435365,2639.9,2639.4,0.37873]
[1724287072439,0.38435365,2639.9,2639.2,3.5768]
[1724287072440,0.00568365,2639.9,2639.2,3.5768]
[1724287072643,0.00568365,2639.9,2639.5,0.37872]
[1724287073244,0.00568365,2639.9,2639.6,0.37871]
[1724287073454,0.00568365,2639.9,2639.5,0.37872]
[1724287075541,0.00568365,2639.9,2639.6,0.37871]
[1724287076341,0.00568365,2639.9,2639.7,0.37869]
[1724287077347,0.00568365,2639.9,2639.8,0.37868]
[1724287077756,0.00568365,2639.9,2639.8,4.16668]
[1724287078963,0.00568365,2639.9,2639.8,3.788]
[1724287079252,0.00568365,2639.9,2639.7,0.37869]
[1724287079958,0.00568365,2639.9,2639.6,0.3787]
[1724287081557,0.00568365,2639.9,2639.7,0.37869]
[1724287082252,0.00568365,2639.9,2639.6,0.3787]
[1724287082760,0.00568365,2639.9,2639.7,0.3787]
[1724287085063,0.00568365,2639.9,2639.8,0.37868]
[1724287085454,0.00568365,2639.9,2639.7,0.37869]
[1724287085954,0.00568365,2639.9,2639.8,0.37868]
[1724287089664,0.00568365,2639.9,2639.7,0.37869]
[1724287089868,0.00568365,2639.9,2639.5,3.2078]
[1724287090162,0.00568365,2639.9,2639.7,0.37869]
[1724287090668,0.38435365,2639.9,2639.5,3.2078]
[1724287090860,0.38435365,2639.9,2639.5,3.58652]
[1724287091166,0.00568365,2639.9,2639.5,3.2078]
[1724287092055,0.00568365,2639.9,2639.8,0.37868]
[1724287092253,0.00568365,2639.9,2639.8,3.58648]
[1724287092457,0.00568365,2639.9,2639.8,8.49938]
[1724287094456,0.00306174,2640.1,2640.0,0.37865]
[1724287099053,0.00306174,2640.1,2639.8,0.38435365]
[1724287099264,0.00306174,2640.1,2639.9,0.37866]